[Event "12th KIIT International 2019"]
[Site "Odisha"]
[Date "2019.05.31"]
[Round "1"]
[White "Rahman, Ziaur"]
[Black "Srujan Keerthan Solletti"]
[Result "1-0"]
[ECO "A14"]
[WhiteElo "2485"]
[BlackElo "1813"]
[Annotator "ChessBase"]
[PlyCount "77"]
[EventDate "2019.05.31"]
[EventType "swiss"]
[EventCountry "IND"]
[SourceTitle "playchess.com"]
[Source "ChessBase"]
[SourceQuality "1"]
[TimeControl "40/5400+30:1800+30"]

1. Nf3 {[%emt 0:00:00]} Nf6 {[%emt 0:00:38]} 2. c4 {[%emt 0:00:02]} e6 {[%emt 0:00:37]} 3. g3 {[%emt 0:00:14]} d5 {[%emt 0:00:48]} 4. Bg2 {[%emt 0:00:38]} Be7 {[%emt 0:01:45]} 5. O-O {[%emt 0:00:07]} O-O {[%emt 0:00:34]} 6. b3 {[%emt 0:00:04]} b6 {[%emt 0:07:41]} 7. Bb2 {[%emt 0:00:17]} Bb7 {[%emt 0:00:06]} 8. e3 {[%emt 0:00:14]} Nbd7 {[%emt 0:01:12]} 9. Nc3 {[%emt 0:00:21]} Ne4 {[%emt 0:04:54]} 10. cxd5 {[%emt 0:02:19]} exd5 {[%emt 0:01:58]} 11. d4 {[%emt 0:02:02]} Ndf6 {[%emt 0:06:36]} 12. Qc2 {[%emt 0:05:52]} Nxc3 {[%emt 0:06:09]} 13. Bxc3 {[%emt 0:00:25]} Ne4 {[%emt 0:01:38]} 14. Bb2 {[%emt 0:00:34]} Bd6 {[%emt 0:00:57]} 15. Ne5 {[%emt 0:08:01]} c5 {[%emt 0:31:12]} 16. dxc5 {[%emt 0:01:29]} Rc8 {[%emt 0:06:07]} 17. c6 {[%emt 0:06:47]} Bxe5 {[%emt 0:04:36]} 18. Bxe5 {[%emt 0:00:28]} Bxc6 {[%emt 0:05:35]} 19. Qb2 {[%emt 0:01:26]} f6 {[%emt 0:00:36]} 20. Bd4 {[%emt 0:01:20]} Qe7 {[%emt 0:01:36]} 21. Rac1 {[%emt 0:02:35]} Qe6 {[%emt 0:02:00]} 22. a4 {[%emt 0:09:51]} Bb7 {[%emt 0:03:33]} 23. b4 {[%emt 0:01:36]} Rxc1 {[%emt 0:02:30]} 24. Rxc1 {[%emt 0:00:08]} Rc8 {[%emt 0:00:03]} 25. Rxc8+ {[%emt 0:02:00]} Qxc8 {[%emt 0:00:07]} 26. a5 {[%emt 0:00:44]} Nd6 {[%emt 0:04:56]} 27. axb6 {[%emt 0:01:54]} Nc4 {[%emt 0:00:21]} 28. Qe2 {[%emt 0:01:04]} axb6 {[%emt 0:00:27]} 29. h4 {[%emt 0:00:35]} Qf8 {[%emt 0:04:43]} 30. Qg4 {[%emt 0:01:48]} Qe7 {[%emt 0:00:33]} 31. Qf4 {[%emt 0:00:57]} Ne5 {[%emt 0:00:27]} 32. Bxb6 {[%emt 0:01:01]} Qd7 {[%emt 0:00:34]} 33. Bd4 {[%emt 0:01:03]} Nc6 {[%emt 0:00:27]} 34. Bb2 {[%emt 0:01:40]} Nd8 {[%emt 0:00:32]} 35. Qd4 {[%emt 0:02:06]} Ne6 {[%emt 0:00:28]} 36. Qb6 {[%emt 0:01:41]} Qc6 {[%emt 0:00:32]} 37. Qxc6 {[%emt 0:03:13]} Bxc6 {[%emt 0:00:03]} 38. Kf1 {[%emt 0:01:45]} Kf7 {[%emt 0:00:46]} 39. Ke2 {[%emt 0:02:02]} 1-0

[Event "12th KIIT International 2019"]
[Site "Odisha"]
[Date "2019.05.31"]
[Round "1"]
[White "Nguyen, Van Huy"]
[Black "Smaraki, Mohanty"]
[Result "1-0"]
[ECO "A77"]
[WhiteElo "2456"]
[BlackElo "1809"]
[Annotator "ChessBase"]
[PlyCount "78"]
[EventDate "2019.05.31"]
[EventType "swiss"]
[EventCountry "IND"]
[SourceTitle "playchess.com"]
[Source "ChessBase"]
[SourceQuality "1"]
[TimeControl "40/5400+30:1800+30"]

1. d4 {[%emt 0:00:00]} Nf6 {[%emt 0:00:00]} 2. c4 {[%emt 0:00:21]} e6 {[%emt 0:00:00]} 3. Nf3 {[%emt 0:00:28]} c5 {[%emt 0:00:00]} 4. d5 {[%emt 0:00:54]} exd5 {[%emt 0:00:00]} 5. cxd5 {[%emt 0:00:05]} d6 {[%emt 0:00:02]} 6. Nc3 {[%emt 0:00:34]} g6 {[%emt 0:00:05]} 7. Nd2 {[%emt 0:00:37]} Bg7 {[%emt 0:00:13]} 8. e4 {[%emt 0:00:14]} O-O {[%emt 0:00:11]} 9. Be2 {[%emt 0:00:12]} a6 {[%emt 0:00:36]} 10. a4 {[%emt 0:00:11]} Re8 {[%emt 0:00:07]} 11. O-O {[%emt 0:00:36]} Nfd7 12. Qc2 {[%emt 0:09:33]} Nf8 {[%emt 0:05:06]} 13. Nc4 {[%emt 0:01:47]} g5 {[%emt 0:05:16]} 14. a5 {[%emt 0:09:05]} Qe7 {[%emt 0:02:07]} 15. f4 {[%emt 0:02:14]} h6 {[%emt 1:23:47]} 16. e5 {[%emt 0:04:16]} dxe5 {[%emt 0:00:00]} 17. d6 {[%emt 0:00:16]} Qd8 {[%emt 0:00:00]} 18. fxg5 {[%emt 0:00:38]} hxg5 {[%emt 0:00:00]} 19. Nb6 {[%emt 0:05:24]} Ra7 {[%emt 0:00:00]} 20. Nxc8 {[%emt 0:00:59]} Qxc8 {[%emt 0:00:00]} 21. Bh5 {[%emt 0:00:06]} Qd8 {[%emt 0:03:00]} 22. Be2 Qc8 {[%emt 0:00:00]} 23. Bh5 Ng6 {[%emt 0:00:00]} 24. Be2 {[%emt 0:01:25]} Nf8 {[%emt 0:00:00]} 25. Bh5 {[%emt 0:01:14]} Ng6 {[%emt 0:00:00]} 26. Be2 {[%emt 0:00:00]} Nf8 {[%emt 0:00:00]} 27. Bh5 {[%emt 0:01:00]} Ng6 {[%emt 0:00:00]} 28. Be2 {[%emt 0:00:00]} Nf8 {[%emt 0:00:00]} 29. Bh5 {[%emt 0:01:00]} Ng6 {[%emt 0:00:00]} 30. Be2 {[%emt 0:00:00]} Nf8 {[%emt 0:00:00]} 31. Bh5 {[%emt 0:01:00]} Ng6 {[%emt 0:00:00]} 32. Be2 {[%emt 0:00:00]} Nf8 {[%emt 0:00:00]} 33. Bh5 {[%emt 0:01:00]} Ng6 {[%emt 0:00:00]} 34. Be2 {[%emt 0:00:00]} Nf8 {[%emt 0:00:00]} 35. Bh5 {[%emt 0:01:00]} Ng6 {[%emt 0:00:00]} 36. Be2 {[%emt 0:00:00]} Nf8 {[%emt 0:00:00]} 37. Bh5 {[%emt 0:01:00]} Ng6 {[%emt 0:00:00]} 38. Be2 {[%emt 0:00:00]} Nf8 {[%emt 0:00:00]} 39. Bh5 {[%emt 0:01:00]} Ng6 {[%emt 0:00:00]} 1-0

[Event "12th KIIT International 2019"]
[Site "Odisha"]
[Date "2019.05.31"]
[Round "1"]
[White "Laxman, R.R."]
[Black "Trivedi Karan R"]
[Result "1-0"]
[ECO "E12"]
[WhiteElo "2446"]
[BlackElo "1804"]
[Annotator "ChessBase"]
[PlyCount "62"]
[EventDate "2019.05.31"]
[EventType "swiss"]
[EventCountry "IND"]
[SourceTitle "playchess.com"]
[Source "ChessBase"]
[SourceQuality "1"]
[TimeControl "40/5400+30:1800+30"]

1. d4 {[%emt 1:30:30]} Nf6 {[%emt 1:30:30]} 2. Nf3 {[%emt 0:00:30]} e6 {[%emt 0:00:30]} 3. c4 b6 {[%emt 0:00:30]} 4. a3 {[%emt 0:01:00]} Bb7 {[%emt 0:00:30]} 5. Nc3 Bc8 {[%emt 0:00:30]} 6. Nb1 Bb7 7. Nc3 Be7 8. d5 {[%emt 0:02:00]} exd5 {[%emt 0:01:30]} 9. cxd5 {[%emt 0:00:30]} O-O {[%emt 0:00:30]} 10. g3 {[%emt 0:00:30]} b5 11. Bg2 a5 12. Nh4 b4 13. Nb5 d6 14. Nf5 Re8 15. axb4 axb4 16. Rxa8 Bxa8 17. Nxe7+ Qxe7 18. O-O Na6 19. Be3 Nc5 20. Qd4 Qd7 21. Qc4 Nfe4 22. Ra1 Bb7 23. Nd4 h6 24. Ra7 Nf6 25. Nc6 {[%emt 0:07:30]} Bc8 26. Bf3 Nce4 27. Nxb4 Qh3 {[%emt 0:09:00]} 28. Nd3 Qf5 29. Rxc7 Bd7 30. b4 Nxd5 31. Rxd7 Nxe3 1-0

[Event "12th KIIT International 2019"]
[Site "Odisha"]
[Date "2019.05.31"]
[Round "1"]
[White "Khusenkhojaev, Muhammad"]
[Black "Potluri Supreetha"]
[Result "1-0"]
[ECO "A13"]
[WhiteElo "2445"]
[BlackElo "1798"]
[Annotator "ChessBase"]
[PlyCount "183"]
[EventDate "2019.05.31"]
[EventType "swiss"]
[EventCountry "IND"]
[SourceTitle "playchess.com"]
[Source "ChessBase"]
[SourceQuality "1"]
[TimeControl "40/5400+30:1800+30"]

1. Nf3 {[%emt 0:00:00]} c5 {[%emt 0:00:00]} 2. b3 {[%emt 0:00:17]} Nc6 {[%emt 0:00:00]} 3. Bb2 {[%emt 0:00:07]} Nb8 {[%emt 0:00:40]} 4. Bc1 {[%emt 0:00:53]} Nc6 {[%emt 0:00:06]} 5. Bb2 {[%emt 0:00:07]} Nf6 {[%emt 0:02:27]} 6. c4 {[%emt 0:01:36]} e6 {[%emt 0:04:18]} 7. g3 {[%emt 0:00:57]} d5 {[%emt 0:01:19]} 8. cxd5 {[%emt 0:00:13]} exd5 {[%emt 0:00:10]} 9. Bg2 {[%emt 0:00:12]} d4 {[%emt 0:05:36]} 10. O-O {[%emt 0:01:20]} Be7 {[%emt 0:01:05]} 11. e3 {[%emt 0:01:40]} Bf5 {[%emt 0:11:36]} 12. Na3 {[%emt 0:06:10]} Bc8 {[%emt 0:00:00]} 13. Nb1 {[%emt 0:00:00]} Bf5 {[%emt 0:01:00]} 14. Na3 {[%emt 0:01:00]} Bc8 {[%emt 0:00:00]} 15. Nb1 {[%emt 0:00:00]} Bf5 {[%emt 0:01:00]} 16. Na3 O-O {[%emt 0:12:20]} 17. Nc4 {[%emt 1:23:58]} Bd3 {[%emt 0:09:00]} 18. Re1 {[%emt 0:00:00]} Nb4 {[%emt 0:03:13]} 19. Rf1 {[%emt 0:00:00]} Nc6 {[%emt 0:00:00]} 20. Re1 {[%emt 0:00:00]} Nb4 {[%emt 0:01:00]} 21. Nce5 {[%emt 0:00:00]} Nc6 {[%emt 0:00:00]} 22. Nc4 {[%emt 0:00:00]} Nb4 {[%emt 0:01:00]} 23. Nce5 Bc2 {[%emt 0:04:13]} 24. Qc1 {[%emt 0:00:00]} Bd3 {[%emt 0:00:00]} 25. Qd1 Bc2 {[%emt 0:01:00]} 26. Qc1 {[%emt 0:00:00]} Bd3 {[%emt 0:00:00]} 27. Qd1 Bc2 {[%emt 0:01:00]} 28. Qc1 {[%emt 0:00:00]} Be4 {[%emt 0:11:04]} 29. Qd1 {[%emt 0:00:00]} Bc2 {[%emt 0:00:00]} 30. Qc1 {[%emt 0:00:00]} Be4 {[%emt 0:01:00]} 31. exd4 {[%emt 0:00:00]} cxd4 {[%emt 0:01:21]} 32. Nxd4 {[%emt 0:00:00]} Bxg2 {[%emt 0:00:36]} 33. Kxg2 {[%emt 0:00:00]} Qd5+ {[%emt 0:04:20]} 34. Ndf3 {[%emt 0:00:00]} Rac8 {[%emt 0:00:52]} 35. Bc3 {[%emt 0:00:00]} Bd6 {[%emt 0:05:23]} 36. Bb2 {[%emt 0:00:00]} Be7 {[%emt 0:00:00]} 37. Bc3 {[%emt 0:00:00]} Bd6 {[%emt 0:01:00]} 38. a3 {[%emt 0:00:00]} Ne4 {[%emt 0:21:21]} 39. Qb1 {[%emt 0:00:00]} Nf6 {[%emt 0:00:00]} 40. Qc1 {[%emt 0:00:00]} Ne4 41. Qb1 {[%emt 0:00:00]} Nf6 {[%emt 0:10:39]} 42. Qc1 {[%emt 0:00:00]} Ne4 43. Qb1 {[%emt 0:00:00]} Ng5 {[%emt 0:20:29]} 44. Qc1 {[%emt 0:00:00]} Ne4 45. Qb1 {[%emt 0:00:00]} Ng5 {[%emt 0:00:00]} 46. Qc1 {[%emt 0:00:00]} Ne4 47. Qb1 {[%emt 0:00:00]} Ng5 48. Bxb4 {[%emt 0:00:12]} Bxe5 49. Qf5 {[%emt 0:00:08]} Nxf3 {[%emt 0:03:47]} 50. Qxf3 {[%emt 0:00:10]} Qxf3+ {[%emt 0:00:24]} 51. Kxf3 {[%emt 0:46:30]} Bxa1 {[%emt 0:00:20]} 52. Bxf8 {[%emt 0:00:00]} Kxf8 53. Rxa1 {[%emt 0:00:00]} Ke7 {[%emt 0:00:53]} 54. Re1+ {[%emt 0:00:00]} Kd6 {[%emt 0:00:04]} 55. Ra1 {[%emt 0:00:00]} Ke7 {[%emt 0:00:56]} 56. Re1+ {[%emt 0:00:00]} Kd6 {[%emt 0:00:04]} 57. Ra1 {[%emt 0:00:00]} Ke7 {[%emt 0:00:56]} 58. Re1+ {[%emt 0:00:00]} Kd6 {[%emt 0:00:04]} 59. Re3 {[%emt 0:00:00]} Kd5 {[%emt 0:00:00]} 60. Re1 {[%emt 0:00:00]} Kd6 {[%emt 0:01:00]} 61. Re3 {[%emt 0:00:00]} Kd5 {[%emt 0:00:19]} 62. Re7 {[%emt 0:00:00]} Kd6 {[%emt 0:00:41]} 63. Re3 {[%emt 0:00:00]} Kd5 {[%emt 0:00:19]} 64. Re7 {[%emt 0:00:00]} Kd6 {[%emt 0:00:41]} 65. Re3 {[%emt 0:00:00]} Kd5 {[%emt 0:00:19]} 66. Re7 {[%emt 0:00:00]} Kd6 {[%emt 0:00:41]} 67. Re3 {[%emt 0:00:00]} Kd5 {[%emt 0:00:19]} 68. Re7 {[%emt 0:00:00]} Kd6 {[%emt 0:00:41]} 69. Re3 {[%emt 0:00:00]} Kd5 {[%emt 0:00:19]} 70. Re7 {[%emt 0:00:00]} Kd6 {[%emt 0:00:41]} 71. Re3 {[%emt 0:00:00]} Kd5 {[%emt 0:00:19]} 72. Re7 {[%emt 0:00:00]} Kd6 {[%emt 0:00:41]} 73. Re3 {[%emt 0:00:00]} Kd5 {[%emt 0:00:19]} 74. Re7 {[%emt 0:00:00]} Kd6 {[%emt 0:00:41]} 75. Re3 {[%emt 0:00:00]} Kd5 {[%emt 0:00:19]} 76. Re7 {[%emt 0:00:00]} Kd6 {[%emt 0:00:41]} 77. Re3 {[%emt 0:00:00]} Kd5 {[%emt 0:00:19]} 78. Re7 {[%emt 0:00:00]} Kd6 {[%emt 0:00:41]} 79. Re3 {[%emt 0:00:00]} Kd5 {[%emt 0:00:19]} 80. Re7 {[%emt 0:00:00]} Kd6 {[%emt 0:00:41]} 81. Re3 {[%emt 0:00:00]} Kd5 {[%emt 0:00:19]} 82. Re7 {[%emt 0:00:00]} Kd6 {[%emt 0:00:41]} 83. Re3 {[%emt 0:00:00]} Kd5 {[%emt 0:00:19]} 84. Re7 {[%emt 0:00:00]} Kd6 {[%emt 0:00:41]} 85. Re3 {[%emt 0:00:00]} Kd5 {[%emt 0:00:19]} 86. Re7 {[%emt 0:00:00]} Kd6 {[%emt 0:00:41]} 87. Re3 {[%emt 0:00:00]} Kd5 {[%emt 0:00:19]} 88. Re7 {[%emt 0:00:00]} Kd6 {[%emt 0:00:41]} 89. Re3 {[%emt 0:00:00]} Kd5 {[%emt 0:00:19]} 90. Re7 {[%emt 0:00:00]} Kd6 {[%emt 0:00:41]} 91. Re3 {[%emt 0:00:00]} Kd5 {[%emt 0:00:19]} 92. Re7 {[%emt 0:00:00]} 1-0

[Event "12th KIIT International 2019"]
[Site "Odisha"]
[Date "2019.05.31"]
[Round "1"]
[White "Rakesh Kumar Jena"]
[Black "Lakshmi C"]
[Result "1/2-1/2"]
[ECO "D02"]
[WhiteElo "2411"]
[BlackElo "1786"]
[Annotator "ChessBase"]
[PlyCount "66"]
[EventDate "2019.05.31"]
[EventType "swiss"]
[EventCountry "IND"]
[SourceTitle "playchess.com"]
[Source "ChessBase"]
[SourceQuality "1"]
[TimeControl "40/5400+30:1800+30"]

1. Nf3 {[%emt 0:00:00]} Nf6 {[%emt 0:00:00]} 2. d4 {[%emt 0:00:00]} e6 {[%emt 0:00:00]} 3. Bf4 {[%emt 0:00:00]} d5 {[%emt 0:01:02]} 4. e3 {[%emt 0:00:04]} Bd6 {[%emt 0:01:08]} 5. Bg3 {[%emt 0:00:16]} O-O {[%emt 0:02:38]} 6. Nbd2 {[%emt 0:00:08]} c5 {[%emt 0:02:42]} 7. c3 {[%emt 0:00:08]} Nc6 {[%emt 0:00:44]} 8. Bb5 {[%emt 0:00:09]} a6 {[%emt 0:07:31]} 9. Bxc6 {[%emt 0:00:21]} bxc6 {[%emt 0:00:15]} 10. Qa4 {[%emt 0:00:08]} Bb7 {[%emt 0:10:01]} 11. Qa3 {[%emt 0:01:09]} Bxg3 {[%emt 0:03:28]} 12. hxg3 {[%emt 0:00:41]} c4 {[%emt 0:00:06]} 13. Qa4 {[%emt 0:00:36]} Nd7 {[%emt 0:01:32]} 14. Qc2 {[%emt 0:01:17]} f5 {[%emt 0:00:58]} 15. g4 {[%emt 0:00:36]} Qf6 {[%emt 0:02:55]} 16. g5 {[%emt 0:02:18]} Qf7 {[%emt 0:00:36]} 17. O-O-O {[%emt 0:00:22]} g6 {[%emt 0:02:31]} 18. Rh6 {[%emt 0:02:28]} Qe7 {[%emt 0:00:21]} 19. Rdh1 {[%emt 0:01:57]} Rf7 {[%emt 0:01:16]} 20. Qa4 {[%emt 0:04:21]} a5 {[%emt 0:06:43]} 21. R6h4 {[%emt 0:14:12]} Rg7 {[%emt 0:16:46]} 22. g4 {[%emt 0:04:28]} Qd6 {[%emt 0:10:33]} 23. gxf5 {[%emt 0:02:30]} exf5 {[%emt 0:02:12]} 24. Nf1 {[%emt 0:04:56]} Nb6 {[%emt 0:03:55]} 25. Qc2 {[%emt 0:02:09]} Ba6 {[%emt 0:22:37]} 26. Ne5 {[%emt 0:04:21]} Bb5 {[%emt 0:00:00]} 27. Ng3 {[%emt 0:03:19]} Rf8 {[%emt 0:00:00]} 28. f4 {[%emt 0:11:54]} Nd7 {[%emt 0:00:00]} 29. Qh2 {[%emt 0:06:43]} Nxe5 {[%emt 0:00:00]} 30. fxe5 {[%emt 0:00:08]} Qe7 {[%emt 0:00:00]} 31. Ne2 {[%emt 0:02:02]} Ba6 {[%emt 0:00:00]} 32. Nf4 {[%emt 0:00:35]} Bc8 {[%emt 0:00:55]} 33. Qh3 {[%emt 0:08:37]} Rff7 1/2-1/2

[Event "12th KIIT International 2019"]
[Site "Odisha"]
[Date "2019.05.31"]
[Round "1"]
[White "Bhagyashree Patil"]
[Black "Vasquez Schroeder, Rodrigo"]
[Result "0-1"]
[ECO "B85"]
[WhiteElo "1812"]
[BlackElo "2476"]
[Annotator "ChessBase"]
[PlyCount "78"]
[EventDate "2019.05.31"]
[EventType "swiss"]
[EventCountry "IND"]
[SourceTitle "playchess.com"]
[Source "ChessBase"]
[SourceQuality "1"]
[TimeControl "40/5400+30:1800+30"]

1. e4 {[%emt 0:00:00]} c5 {[%emt 0:00:00]} 2. Nf3 {[%emt 0:00:00]} d6 {[%emt 0:00:00]} 3. d4 {[%emt 0:00:00]} cxd4 {[%emt 0:00:00]} 4. Nxd4 {[%emt 0:00:00]} Nf6 {[%emt 0:00:04]} 5. Nc3 {[%emt 0:00:00]} a6 {[%emt 0:00:05]} 6. Be3 {[%emt 0:00:04]} e6 {[%emt 0:00:32]} 7. Be2 {[%emt 0:01:46]} Be7 {[%emt 0:00:45]} 8. O-O {[%emt 0:01:17]} O-O {[%emt 0:00:05]} 9. f4 {[%emt 0:13:31]} Qc7 {[%emt 0:00:04]} 10. Bf3 {[%emt 0:01:06]} Nc6 {[%emt 0:00:06]} 11. Be2 {[%emt 0:00:00]} Nb8 {[%emt 0:00:54]} 12. Bf3 {[%emt 0:01:00]} Nc6 {[%emt 0:00:06]} 13. Be2 {[%emt 0:00:00]} Nb8 {[%emt 0:00:54]} 14. Bf3 {[%emt 0:01:00]} Nc6 {[%emt 0:00:06]} 15. Be2 {[%emt 0:00:00]} Nb8 {[%emt 0:00:54]} 16. Bf3 {[%emt 0:01:00]} Nc6 {[%emt 0:00:06]} 17. Kh1 Re8 {[%emt 0:00:28]} 18. Kg1 {[%emt 0:01:00]} Rf8 {[%emt 0:00:32]} 19. Kh1 {[%emt 0:14:29]} Re8 {[%emt 0:00:28]} 20. Kg1 {[%emt 0:00:00]} Rf8 {[%emt 0:00:32]} 21. Kh1 {[%emt 0:01:00]} Re8 22. Nce2 {[%emt 0:07:09]} Bd7 {[%emt 0:04:31]} 23. Nc3 {[%emt 0:00:00]} Bc8 24. Nce2 {[%emt 0:01:00]} Bd7 {[%emt 0:01:00]} 25. Nc3 {[%emt 0:00:00]} Bc8 26. Nce2 {[%emt 0:01:00]} Bd7 {[%emt 0:01:00]} 27. c4 {[%emt 0:57:08]} Rac8 {[%emt 0:01:02]} 28. b3 {[%emt 0:00:00]} Qb8 {[%emt 0:01:52]} 29. Qd2 {[%emt 0:00:00]} Red8 {[%emt 0:00:19]} 30. Rfd1 {[%emt 0:00:00]} Be8 {[%emt 0:00:11]} 31. Rf1 {[%emt 0:00:00]} Bd7 {[%emt 0:00:49]} 32. Rfd1 {[%emt 0:00:00]} Be8 {[%emt 0:00:11]} 33. Rf1 {[%emt 0:00:00]} Bd7 {[%emt 0:00:49]} 34. Rfd1 {[%emt 0:00:00]} Be8 {[%emt 0:00:11]} 35. Qe1 {[%emt 0:00:00]} b5 {[%emt 0:02:23]} 36. cxb5 {[%emt 0:00:00]} axb5 {[%emt 0:00:16]} 37. a4 {[%emt 0:00:00]} Nxd4 {[%emt 0:01:43]} 38. Nxd4 {[%emt 0:00:00]} d5 {[%emt 0:07:29]} 39. Ne2 {[%emt 0:00:00]} Nxe4 {[%emt 0:00:15]} 0-1

[Event "12th KIIT International 2019"]
[Site "Odisha"]
[Date "2019.05.31"]
[Round "1"]
[White "Aditya Bikram Paul"]
[Black "Kostenko, Petr"]
[Result "0-1"]
[ECO "A95"]
[WhiteElo "1807"]
[BlackElo "2450"]
[Annotator "ChessBase"]
[PlyCount "278"]
[EventDate "2019.05.31"]
[EventType "swiss"]
[EventCountry "IND"]
[SourceTitle "playchess.com"]
[Source "ChessBase"]
[SourceQuality "1"]
[TimeControl "40/5400+30:1800+30"]

1. c4 f5 2. g3 Nf6 3. Bg2 e6 4. Nf3 Be7 5. O-O O-O 6. d4 d5 7. Nc3 {[%emt 0:03:00]} c6 {[%emt 0:06:29]} 8. Ne5 {[%emt 0:00:30]} Nbd7 9. cxd5 exd5 10. Nd3 Ne4 11. f3 Nd6 12. Bf4 Nf6 13. b3 {[%emt 1:33:00]} Nf7 {[%emt 1:30:01]} 14. Qd2 {[%emt 0:00:30]} Nh5 {[%emt 0:00:30]} 15. Qd1 {[%emt 0:00:30]} Nf6 16. Qd2 Nh5 17. Be3 {[%emt 0:01:00]} Nd6 {[%emt 0:01:30]} 18. Bf4 {[%emt 0:00:30]} Nf7 19. Be3 Nd6 20. Bf2 {[%emt 0:01:00]} Nf6 {[%emt 0:01:30]} 21. Be3 Nh5 22. Bf2 Nf6 {[%emt 0:01:00]} 23. Be3 Nh5 24. Bf2 Nf6 {[%emt 0:01:00]} 25. Be3 Nh5 26. Bf2 Nf6 27. Ne5 {[%emt 0:03:30]} Be6 {[%emt 0:01:30]} 28. Rac1 {[%emt 0:00:30]} Qe8 {[%emt 0:00:30]} 29. Na4 {[%emt 0:00:30]} Rd8 {[%emt 0:00:30]} 30. Nc5 {[%emt 0:00:30]} Bc8 {[%emt 0:00:30]} 31. Na4 {[%emt 0:00:30]} Be6 32. Nc5 Bc8 33. a4 Kh8 {[%emt 0:01:30]} 34. Ncd3 Rg8 {[%emt 0:00:30]} 35. Nc5 {[%emt 0:02:00]} Rf8 36. Ncd3 Rg8 37. Qa5 {[%emt 0:01:00]} Nf7 {[%emt 0:01:30]} 38. Qd2 Nd6 39. Qa5 a6 40. Qd2 Nf7 {[%emt 0:01:30]} 41. Nc5 Nd6 42. Ncd3 g5 43. Qb2 {[%emt 0:33:00]} Rg7 {[%emt 0:31:30]} 44. Be1 {[%emt 0:00:30]} Qh5 {[%emt 0:00:30]} 45. h3 {[%emt 0:00:30]} Rdg8 46. Bb4 {[%emt 0:00:30]} Rd8 {[%emt 0:01:00]} 47. Be1 Rdg8 48. Bb4 Rd8 {[%emt 0:01:00]} 49. Be1 Rdg8 50. Bb4 Rd8 {[%emt 0:01:00]} 51. Be1 Rdg8 52. Bb4 Qe8 {[%emt 0:01:00]} 53. Kh2 {[%emt 0:03:30]} h5 {[%emt 0:00:30]} 54. Bd2 {[%emt 0:00:30]} Bd8 {[%emt 0:00:30]} 55. Bb4 {[%emt 0:00:30]} Be7 56. Bd2 Bd8 57. Rce1 {[%emt 0:01:00]} Bc7 {[%emt 0:01:30]} 58. Nc5 {[%emt 0:00:30]} Bd8 {[%emt 0:00:30]} 59. Ncd3 Bc7 60. Nc5 Bd8 {[%emt 0:01:00]} 61. Ncd3 Bc7 62. Nc5 Bd8 {[%emt 0:01:00]} 63. Ncd3 Bc7 64. Nc5 Bd8 {[%emt 0:01:00]} 65. Ncd3 Bc7 66. Nc5 Bd8 {[%emt 0:01:00]} 67. Ncd3 Bc7 68. Nc5 Nf7 69. e4 {[%emt 0:05:30]} h4 {[%emt 0:01:30]} 70. exf5 {[%emt 0:00:30]} hxg3+ {[%emt 0:00:30]} 71. Kg1 {[%emt 0:00:30]} Bxf5 {[%emt 0:00:30]} 72. Ng4 {[%emt 0:00:30]} Qd8 {[%emt 0:00:30]} 73. Nxb7 {[%emt 0:00:30]} Qc8 74. Nxf6 Qxb7 75. Nxg8 {[%emt 0:01:00]} Kxg8 76. Re8+ Kh7 77. Ree1 {[%emt 0:01:00]} Kg8 78. Re8+ Kh7 79. Rfe1 {[%emt 0:01:00] Kh8 Rf1+ Kh7 Rfe1} Bd6 80. Rf1 {[%emt 0:00:30]} Bc7 81. Rfe1 Bd6 82. Rf1 {[%emt 0:01:00]} Bc7 83. Rfe1 Bd6 84. Rf1 {[%emt 0:01:00]} Bc7 85. Rfe1 Bd6 86. Qc3 Bc7 {[%emt 0:07:00]} 87. Qb2 Bd6 88. Qc3 Bc7 {[%emt 0:01:00]} 89. Qb2 Bd6 90. Qc3 Rg6 91. Bf1 Rg7 {[%emt 0:01:30]} 92. Bg2 Rg6 93. Bf1 Rg7 {[%emt 0:01:00]} 94. Bg2 Rg6 95. Bf1 Rg7 {[%emt 0:01:00]} 96. Bg2 Rg6 97. Bf1 Nh6 {[%emt 0:01:00]} 98. Bg2 Nf7 99. Bf1 Nh6 100. Bd3 {[%emt 0:08:00]} Nf7 101. Bf1 Nh6 102. Bd3 Qf7 {[%emt 0:02:30]} 103. Bf1 {[%emt 0:01:30]} Qb7 104. Bd3 Qf7 105. Qc2 Qb7 {[%emt 0:01:30]} 106. Qc3 Qf7 107. Qc2 Kg7 {[%emt 0:01:00]} 108. Qc3 {[%emt 0:02:30]} Kh7 109. Qc2 Kg7 110. R8e5 {[%emt 0:01:00]} Kh7 {[%emt 0:01:30]} 111. Re8 Kg7 112. R8e5 Bxe5 113. Rxe5 {[%emt 0:01:30]} Bxd3 114. Qxd3 Qd7 115. Kg2 Nf7 116. Re1 Rh6 117. Rh1 Re6 118. Re1 Rg6 {[%emt 0:04:00]} 119. Rh1 Re6 120. Re1 Nd6 121. Rh1 {[%emt 0:04:00]} Nf7 122. Re1 Nd6 123. Re5 Rxe5 124. dxe5 Nf7 125. f4 gxf4 126. Bxf4 Qe6 127. Qxg3+ Kf8 {[%emt 0:04:30]} 128. h4 Qf5 129. Qf3 Qe6 {[%emt 0:01:00]} 130. Qg3 Qf5 131. Qf3 Ke7 132. h5 Nxe5 133. Bxe5 Qxe5 {[%emt 0:02:00]} 134. Kh3 a5 135. Kh4 Qf6+ 136. Kh3 {[%emt 0:07:30]} Qe5 137. Kh4 Qf6+ 138. Kh3 {[%emt 0:01:00]} Qe5 139. Kh4 Qf6+ 0-1

[Event "12th KIIT International 2019"]
[Site "Odisha"]
[Date "2019.05.31"]
[Round "1"]
[White "Atri Chattopadhyay"]
[Black "Lugovskoy, Maxim"]
[Result "0-1"]
[ECO "C01"]
[WhiteElo "1801"]
[BlackElo "2445"]
[Annotator "ChessBase"]
[PlyCount "64"]
[EventDate "2019.05.31"]
[EventType "swiss"]
[EventCountry "IND"]
[SourceTitle "playchess.com"]
[Source "ChessBase"]
[SourceQuality "1"]
[TimeControl "40/5400+30:1800+30"]

1. e4 {[%emt 0:00:00]} e6 {[%emt 0:00:00]} 2. d4 {[%emt 0:00:00]} d5 {[%emt 0:00:00]} 3. exd5 {[%emt 0:01:03]} exd5 {[%emt 0:00:00]} 4. Bd3 {[%emt 0:00:04]} Nc6 {[%emt 0:00:00]} 5. c3 {[%emt 0:00:22]} Bd6 6. Ne2 {[%emt 0:01:19]} Nge7 {[%emt 0:00:19]} 7. Bf4 {[%emt 0:01:20]} Bg4 {[%emt 0:00:37]} 8. Qd2 {[%emt 0:04:13]} Ng6 {[%emt 0:02:02]} 9. Bxd6 {[%emt 0:06:09]} Qxd6 {[%emt 0:00:03]} 10. Qe3+ {[%emt 0:00:22]} Nce7 {[%emt 0:00:13]} 11. f3 {[%emt 0:04:20]} Bd7 {[%emt 0:00:29]} 12. Nd2 {[%emt 0:00:54]} O-O-O {[%emt 0:02:01]} 13. O-O-O {[%emt 0:00:26]} Rhe8 {[%emt 0:00:05]} 14. Qf2 {[%emt 0:14:07]} Bf5 {[%emt 0:00:09]} 15. Nb3 Bxd3 {[%emt 0:05:42]} 16. Rxd3 {[%emt 0:12:55]} h5 {[%emt 0:00:31]} 17. g3 {[%emt 0:08:18]} Nf5 {[%emt 0:00:50]} 18. Re1 {[%emt 0:01:23]} Re7 {[%emt 0:00:52]} 19. Na1 {[%emt 0:01:16]} Qa6 20. Kc2 {[%emt 0:03:58]} Rde8 {[%emt 0:00:26]} 21. Kd2 {[%emt 0:02:17]} Ne3 22. Rxe3 {[%emt 0:04:49]} Rxe3 {[%emt 0:01:14]} 23. Qxe3 {[%emt 0:00:14]} Rxe3 {[%emt 0:00:05]} 24. Kxe3 {[%emt 0:32:11]} Qa5 {[%emt 1:26:22]} 25. a3 Qxa3 {[%emt 0:00:00]} 26. Nc2 {[%emt 0:00:00]} Qxb2 {[%emt 0:00:00]} 27. Nb4 {[%emt 0:00:00]} a5 {[%emt 0:00:00]} 28. Nd3 {[%emt 0:00:00]} Qa3 {[%emt 0:00:00]} 29. Kd2 {[%emt 0:00:00]} Qa2+ {[%emt 0:00:00]} 30. Kd1 {[%emt 0:00:00]} b6 {[%emt 0:00:00]} 31. h4 {[%emt 0:00:00]} a4 {[%emt 0:00:00]} 32. Nec1 {[%emt 0:00:00]} Qg2 {[%emt 0:00:00]} 0-1